fUST/lending_fUST_20250124
["ID","MTS","AMOUNT","RATE_DAILY","PERIOD"]
[350162035,1737663041851,-688.62,0.00019589,3]
[350162037,1737663041860,-253.081742,0.00019589,2]
[350162039,1737663041869,-873.61,0.00019589,3]
[350162041,1737663041880,-500.0,0.00019589,3]
[350162043,1737663041889,-1318.32,0.00019589,3]
[350162045,1737663041898,-253.081742,0.00019589,2]
[350162047,1737663041907,-151.0,0.00019589,2]
[350162049,1737663041916,-534.45,0.00019589,3]
[350162051,1737663041926,-151.0,0.00019589,2]
[350162053,1737663041936,-151.0,0.00019589,2]
[350162055,1737663041946,-515.23345343,0.00019589,3]
[350162057,1737663041955,-500.0,0.00019589,3]
[350162059,1737663041964,-543.06,0.00019589,3]
[350162061,1737663041974,-500.0,0.00019589,3]
[350162063,1737663041983,-500.0,0.00019589,3]
[350162065,1737663041992,-500.0,0.00019589,3]
[350162067,1737663042002,-6658.01,0.00019589,3]
[350162069,1737663042011,-847.08,0.00019589,3]
[350162071,1737663042020,-500.0,0.00019589,3]
[350162073,1737663042030,-151.0,0.00019589,2]
[350162075,1737663042039,-500.0,0.00019589,3]
[350162077,1737663042048,-1306.42,0.00019589,3]
[350162079,1737663042057,-500.0,0.00019589,3]
[350162081,1737663042069,-500.0,0.00019589,3]
[350162084,1737663042080,-767.93,0.00019589,3]
[350162086,1737663042090,-1447.81,0.00019589,3]
[350162088,1737663042099,-500.0,0.00019589,3]
[350162090,1737663042109,-3555.19,0.00019589,3]
[350162092,1737663042118,-1121.38,0.00019589,3]
[350162094,1737663042127,-216.01665,0.00019589,2]
[350162096,1737663042137,-216.01665,0.00019589,2]
[350162099,1737663042146,-153.0,0.00019589,2]
[350162102,1737663042155,-325.9554584,0.00019589,2]
[350162105,1737663042165,-3356.52828855,0.0001959,2]
[350162108,1737663042174,-151.0,0.000196,2]
[350162111,1737663042183,-2231.39613367,0.00019626,2]
[350162113,1737663042192,-558.51,0.00019678,2]
[350162115,1737663042201,-195.053583,0.00019726,2]
[350162117,1737663042211,-195.053583,0.00019726,2]
[350162119,1737663042220,-500.0,0.00019726,3]
[350162121,1737663042228,-500.0,0.00019726,3]
[350162123,1737663042237,-500.0,0.00019726,3]
[350162125,1737663042246,-500.0,0.00019726,3]
[350162127,1737663042256,-165.75169,0.00019726,2]
[350162129,1737663042266,-151.0,0.00019726,2]
[350162131,1737663042275,-500.0,0.00019726,3]
[350162133,1737663042284,-500.0,0.00019726,3]
[350162135,1737663042296,-500.0,0.00019726,3]
[350162138,1737663042306,-151.0,0.00019726,2]
[350162140,1737663042317,-151.0,0.00019726,2]
[350162141,1737663042327,-525.141073,0.00019726,2]
[350162143,1737663042336,-500.0,0.00019726,2]
[350162145,1737663042345,-151.0,0.00019726,2]
[350162147,1737663042354,-395.81087821,0.00019726,3]
[350162149,1737663042364,-500.0,0.00019726,3]
[350162151,1737663042373,-817.01,0.00019726,3]
[350162153,1737663042382,-151.0,0.00019726,2]
[350162155,1737663042391,-151.0,0.00019726,2]
[350162157,1737663042401,-500.0,0.00019726,3]
[350162159,1737663042410,-500.0,0.00019726,3]
[350162161,1737663042419,-878.33,0.00019726,3]
[350162163,1737663042428,-532.45,0.00019726,3]
[350162165,1737663042437,-500.0,0.00019726,3]
[350162167,1737663042447,-500.0,0.00019726,3]
[350162169,1737663042459,-500.0,0.00019726,3]
[350162171,1737663042468,-151.0,0.00019726,2]
[350162173,1737663042478,-245.15786,0.00019726,2]
[350162175,1737663042487,-8046.19,0.00019726,3]
[350162177,1737663042498,-3105.27,0.00019726,3]
[350162179,1737663042507,-3913.85,0.00019726,3]
[350162181,1737663042517,-534.85,0.00019726,3]
[350162183,1737663042527,-500.0,0.00019726,3]
[350162185,1737663042536,-151.0,0.00019726,2]
[350162187,1737663042545,-500.0,0.00019726,3]
[350162189,1737663042554,-500.0,0.00019726,3]
[350162191,1737663042564,-500.0,0.00019726,3]
[350162193,1737663042573,-1711.96,0.00019726,3]
[350162195,1737663042583,-1208.85,0.00019726,3]
[350162197,1737663042593,-688.62,0.00019726,3]
[350162199,1737663042602,-873.61,0.00019726,3]
[350162201,1737663042611,-253.081742,0.00019726,2]
[350162203,1737663042620,-500.0,0.00019726,3]
[350162205,1737663042629,-1318.32,0.00019726,3]
[350162207,1737663042638,-253.081742,0.00019726,2]
[350162209,1737663042648,-151.0,0.00019726,2]
[350162211,1737663042657,-534.45,0.00019726,3]
[350162213,1737663042666,-151.0,0.00019726,2]
[350162215,1737663042675,-151.0,0.00019726,2]
[350162217,1737663042684,-500.0,0.00019726,3]
[350162219,1737663042693,-543.06,0.00019726,3]
[350162221,1737663042702,-500.0,0.00019726,3]
[350162223,1737663042711,-500.0,0.00019726,3]
[350162225,1737663042721,-500.0,0.00019726,3]
[350162227,1737663042731,-6658.01,0.00019726,3]
[350162229,1737663042740,-847.08,0.00019726,3]
[350162231,1737663042750,-500.0,0.00019726,3]
[350162233,1737663042759,-151.0,0.00019726,2]
[350162235,1737663042768,-500.0,0.00019726,3]
[350162237,1737663042778,-1306.42,0.00019726,3]
[350162239,1737663042788,-500.0,0.00019726,3]
[350162241,1737663042797,-500.0,0.00019726,3]
[350162243,1737663042807,-767.93,0.00019726,3]
[350162244,1737663042818,-1447.81,0.00019726,3]
[350162246,1737663042827,-500.0,0.00019726,3]
[350162248,1737663042837,-3555.19,0.00019726,3]
[350162250,1737663042846,-1121.38,0.00019726,3]
[350162252,1737663042856,-216.01665,0.00019726,2]
[350162254,1737663042865,-216.01665,0.00019726,2]
[350162256,1737663042874,-500.0,0.00019733,2]
[350162259,1737663042884,-2651.3558827,0.00019736,2]
[350162261,1737663042893,-500.0,0.00019736,2]
[350162264,1737663042903,-1000.0,0.00019771,2]
[350162268,1737663042912,-500.0,0.00019773,2]
[350162271,1737663042922,-500.0,0.00019781,2]
[350162274,1737663042932,-249.99504924,0.00019781,2]
[350162276,1737663042941,-501.5552815,0.00019781,2]
[350162278,1737663042951,-320.07449885,0.00019781,2]
[350162280,1737663042960,-500.0,0.00019781,2]
[350162282,1737663042969,-500.0,0.00019781,2]
[350162284,1737663042979,-164.04869859,0.00019781,2]
[350162286,1737663042988,-500.0,0.00019781,2]
[350162288,1737663042997,-13031.4732836,0.000198,2]
[350162290,1737663043007,-151.0,0.000198,2]
[350162292,1737663043016,-151.0,0.000198,2]
[350162294,1737663043025,-151.0,0.000198,2]
[350162296,1737663043034,-151.0,0.000198,2]
[350162298,1737663043043,-263.049221,0.000198,2]
[350162300,1737663043052,-253.081742,0.000198,2]
[350162303,1737663043158,-253.081742,0.000198,2]
[350162304,1737663043168,-151.0,0.000198,2]
[350162305,1737663043177,-151.0,0.000198,2]
[350162307,1737663043187,-216.01665,0.000198,2]
[350162309,1737663043196,-216.01665,0.000198,2]
[350162311,1737663043206,-502.41672795,0.00019814,2]
[350162313,1737663043215,-195.053583,0.00019863,2]
[350162315,1737663043224,-195.053583,0.00019863,2]
[350162316,1737663043234,-500.0,0.00019863,3]
[350162318,1737663043244,-500.0,0.00019863,3]
[350162320,1737663043253,-500.0,0.00019863,3]
[350162322,1737663043262,-500.0,0.00019863,3]
[350162324,1737663043271,-151.0,0.00019863,2]
[350162326,1737663043281,-232.38,0.00019863,3]
[350162328,1737663043291,-500.0,0.00019863,3]
[350162330,1737663043300,-500.0,0.00019863,3]
[350162332,1737663043310,-525.141073,0.00019863,2]
[350162334,1737663043322,-264.65,0.00019863,2]
[350162336,1737663043331,-150.05,0.00019863,3]
[350162338,1737663043341,-500.0,0.00019863,3]
[350162340,1737663043350,-817.01,0.00019863,3]
[350162342,1737663043360,-151.0,0.00019863,2]
[350162344,1737663043369,-500.0,0.00019863,3]
[350162346,1737663043378,-500.0,0.00019863,3]
[350162348,1737663043388,-878.33,0.00019863,3]
[350162350,1737663043397,-500.0,0.00019863,3]
[350162352,1737663043406,-496.4,0.00019863,3]
[350162354,1737663043416,-500.0,0.00019863,3]
[350162356,1737663043425,-150.05,0.00019863,2]
[350162358,1737663043435,-151.0,0.00019863,2]
[350162360,1737663043444,-150.05,0.00019863,3]
[350162362,1737663043457,-150.05,0.00019863,3]
[350162364,1737663043466,-150.05,0.00019863,3]
[350162366,1737663043476,-8046.19,0.00019863,3]
[350162368,1737663043485,-3105.27,0.00019863,3]
[350162370,1737663043494,-3913.85,0.00019863,3]
[350162372,1737663043504,-500.0,0.00019863,3]
[350162375,1737663043513,-500.0,0.00019863,3]
[350162377,1737663043523,-500.0,0.00019863,3]
[350162379,1737663043533,-500.0,0.00019863,3]
[350162381,1737663043542,-1711.96,0.00019863,3]
[350162383,1737663043551,-1208.85,0.00019863,3]
[350162385,1737663043560,-688.62,0.00019863,3]
[350162387,1737663043572,-873.61,0.00019863,3]
[350162389,1737663043583,-253.081742,0.00019863,2]
[350162391,1737663043592,-500.0,0.00019863,3]
[350162393,1737663043601,-1318.32,0.00019863,3]
[350162395,1737663043611,-253.081742,0.00019863,2]
[350162397,1737663043620,-151.0,0.00019863,2]
[350162399,1737663043629,-534.45,0.00019863,3]
[350162401,1737663043639,-151.0,0.00019863,2]
[350162403,1737663043648,-151.0,0.00019863,2]
[350162405,1737663043658,-500.0,0.00019863,3]
[350162407,1737663043667,-543.06,0.00019863,3]
[350162409,1737663043677,-500.0,0.00019863,3]
[350162411,1737663043686,-500.0,0.00019863,3]
[350162413,1737663043695,-500.0,0.00019863,3]
[350162415,1737663043705,-6658.01,0.00019863,3]
[350162417,1737663043714,-847.08,0.00019863,3]
[350162419,1737663043723,-500.0,0.00019863,3]
[350162421,1737663043732,-151.0,0.00019863,2]
[350162422,1737663043742,-500.0,0.00019863,3]
[350162424,1737663043751,-1306.42,0.00019863,3]
[350162426,1737663043761,-500.0,0.00019863,3]
[350162428,1737663043770,-500.0,0.00019863,3]
[350162430,1737663043780,-767.93,0.00019863,3]
[350162432,1737663043790,-1447.81,0.00019863,3]
[350162434,1737663043800,-500.0,0.00019863,3]
[350162436,1737663043809,-3555.19,0.00019863,3]
[350162439,1737663043820,-1121.38,0.00019863,3]
[350162441,1737663043829,-216.01665,0.00019873,2]
[350162442,1737663043839,-151.0,0.000199,2]
[350162444,1737663043850,-1301.48638668,0.000199,2]
[350162446,1737663043860,-1000.0,0.00019941,2]
[350162449,1737663043870,-196.0,0.00019952,2]
[350162451,1737663043879,-501.95263661,0.00019973,2]
[350162452,1737663043888,-500.0,0.00019973,2]
[350162454,1737663043900,-501.12361275,0.00019973,2]
[350162456,1737663043909,-151.0,0.00019999,2]
[350162458,1737663043919,-151.0,0.00019999,2]
[350162461,1737663043929,-160.0,0.0002,2]
[350162463,1737663043938,-963.0,0.0002,3]
[350162465,1737663043948,-962.0,0.0002,3]
[350162467,1737663043957,-962.0,0.0002,3]
[350162469,1737663043966,-962.0,0.0002,3]
[350162471,1737663043976,-26716.2966796,0.0002,3]
[350162473,1737663043985,-13569.21,0.0002,2]
[350162474,1737663043995,-8507.79,0.0002,2]
[350162476,1737663044007,-958.18,0.0002,2]
[350162479,1737663044017,-195.053583,0.0002,2]
[350162480,1737663044027,-195.053583,0.0002,2]
[350162482,1737663044036,-195.053583,0.0002,2]
[350162484,1737663044045,-195.053583,0.0002,2]
[350162486,1737663044055,-2654.49231819,0.0002,2]
[350162494,1737663044121,-300.21185405,0.00019314,2]
[350162496,1737663044130,-139.80262055,0.00019315,2]
[350162498,1737663044141,-11.19737945,0.00019315,2]
[350162500,1737663044150,-1154.04225501,0.0001948,2]
[350162502,1737663044159,-216.01665,0.00019873,2]
[350162504,1737663044168,-3496.67853854,0.0002,2]
[350162507,1737663044190,-1209.82914327,0.0002,2]
[350162509,1737663044199,-500.0,0.0002,3]
[350162511,1737663044208,-500.0,0.0002,3]
[350162513,1737663044217,-500.0,0.0002,3]
[350162515,1737663044226,-500.0,0.0002,3]
[350162517,1737663044235,-151.0,0.0002,2]
[350162519,1737663044245,-253.061328,0.0002,2]
[350162521,1737663044254,-500.0,0.0002,3]
[350162523,1737663044263,-500.0,0.0002,3]
[350162525,1737663044273,-151.0,0.0002,2]
[350162527,1737663044283,-151.0,0.0002,2]
[350162529,1737663044292,-216.797472,0.0002,2]
[350162531,1737663044301,-300.0,0.0002,8]
[350162533,1737663044310,-525.141073,0.0002,2]
[350162535,1737663044321,-525.141073,0.0002,2]
[350162537,1737663044330,-150.0,0.0002,2]
[350162539,1737663044339,-500.0,0.0002,3]
[350162541,1737663044348,-817.01,0.0002,3]
[350162543,1737663044357,-151.0,0.0002,2]
[350162545,1737663044367,-151.0,0.0002,2]
[350162546,1737663044376,-182.487391,0.0002,2]
[350162548,1737663044385,-500.0,0.0002,3]
[350162550,1737663044395,-500.0,0.0002,3]
[350162552,1737663044404,-878.33,0.0002,3]
[350162554,1737663044414,-392.36,0.0002,3]
[350162556,1737663044423,-500.0,0.0002,3]
[350162558,1737663044433,-151.0,0.0002,2]
[350162560,1737663044442,-151.0,0.0002,2]
[350162562,1737663044455,-8046.19,0.0002,3]
[350162564,1737663044466,-3105.27,0.0002,3]
[350162566,1737663044476,-3913.85,0.0002,3]
[350162567,1737663044485,-500.0,0.0002,3]
[350162568,1737663044495,-500.0,0.0002,3]
[350162569,1737663044504,-500.0,0.0002,3]
[350162570,1737663044513,-352.4,0.0002,3]
[350162571,1737663044523,-1711.96,0.0002,3]
[350162572,1737663044533,-1208.85,0.0002,3]
[350162573,1737663044542,-688.62,0.0002,3]
[350162574,1737663044552,-873.61,0.0002,3]
[350162575,1737663044561,-253.081742,0.0002,2]
[350162576,1737663044572,-253.081742,0.0002,2]
[350162577,1737663044581,-500.0,0.0002,3]
[350162578,1737663044590,-1318.32,0.0002,3]
[350162579,1737663044599,-253.081742,0.0002,2]
[350162580,1737663044608,-253.081742,0.0002,2]
[350162581,1737663044617,-151.0,0.0002,2]
[350162583,1737663044627,-151.0,0.0002,2]
[350162585,1737663044636,-534.45,0.0002,3]
[350162587,1737663044646,-300.90964,0.0002,2]
[350162589,1737663044655,-151.0,0.0002,2]
[350162591,1737663044664,-151.0,0.0002,2]
[350162594,1737663044674,-500.0,0.0002,3]
[350162596,1737663044683,-543.06,0.0002,3]
[350162598,1737663044692,-500.0,0.0002,3]
[350162600,1737663044701,-500.0,0.0002,3]
[350162602,1737663044711,-500.0,0.0002,3]
[350162604,1737663044720,-6658.01,0.0002,3]
[350162606,1737663044729,-847.08,0.0002,3]
[350162608,1737663044738,-500.0,0.0002,3]
[350162610,1737663044747,-151.0,0.0002,2]
[350162612,1737663044756,-151.0,0.0002,2]
[350162614,1737663044768,-500.0,0.0002,3]
[350162616,1737663044777,-1306.42,0.0002,3]
[350162618,1737663044787,-500.0,0.0002,3]
[350162620,1737663044796,-500.0,0.0002,3]
[350162622,1737663044805,-767.93,0.0002,3]
[350162624,1737663044816,-1447.81,0.0002,3]
[350162626,1737663044825,-500.0,0.0002,3]
[350162628,1737663044835,-3555.19,0.0002,3]
[350162630,1737663044845,-1121.38,0.0002,3]
[350162632,1737663044854,-216.01665,0.0002,2]
[350162634,1737663044864,-216.01665,0.0002,2]
[350162636,1737663044873,-216.01665,0.0002,2]
[350162638,1737663044882,-216.01665,0.0002,2]
[350162640,1737663044891,-1301.48638661,0.00020038,2]
[350162642,1737663044901,-587.0,0.00020097,2]
[350162644,1737663044910,-151.0,0.000201,4]
[350162646,1737663044919,-250.21619049,0.00020109,2]
[350162648,1737663044928,-501.19233727,0.00020109,2]
[350162650,1737663044937,-500.0,0.00020109,2]
[350162652,1737663044946,-195.053583,0.00020136,2]
[350162654,1737663044956,-195.053583,0.00020136,2]
[350162656,1737663044965,-500.0,0.00020136,3]
[350162658,1737663044974,-431.77,0.00020136,3]
[350162660,1737663044983,-500.0,0.00020136,3]
[350162662,1737663044992,-605.34,0.00020136,3]
[350162664,1737663045001,-500.0,0.00020136,3]
[350162666,1737663045010,-500.0,0.00020136,3]
[350162668,1737663045019,-525.141073,0.00020136,2]
[350162670,1737663045029,-500.0,0.00020136,3]
[350162672,1737663045038,-817.01,0.00020136,3]
[350162674,1737663045047,-151.0,0.00020136,2]
[350162676,1737663045056,-500.0,0.00020136,3]
[350162678,1737663045066,-500.0,0.00020136,3]
[350162679,1737663045075,-878.33,0.00020136,3]
[350162681,1737663045085,-500.0,0.00020136,3]
[350162683,1737663045095,-151.0,0.00020136,2]
[350162685,1737663045105,-8046.19,0.00020136,3]
[350162688,1737663045114,-3105.27,0.00020136,3]
[350162690,1737663045124,-3913.85,0.00020136,3]
[350162692,1737663045133,-500.0,0.00020136,3]
[350162693,1737663045142,-220.9,0.00020136,3]
[350162695,1737663045151,-500.0,0.00020136,3]
[350162697,1737663045161,-1711.96,0.00020136,3]
[350162699,1737663045170,-1208.85,0.00020136,3]
[350162702,1737663045179,-688.62,0.00020136,3]
[350162703,1737663045188,-873.61,0.00020136,3]
[350162705,1737663045198,-253.081742,0.00020136,2]
[350162708,1737663045207,-375.42,0.00020136,3]
[350162710,1737663045216,-1318.32,0.00020136,3]
[350162712,1737663045225,-253.08175,0.00020136,2]
[350162714,1737663045234,-151.0,0.00020136,2]
[350162716,1737663045243,-534.45,0.00020136,3]
[350162718,1737663045252,-298.461147,0.00020136,2]
[350162720,1737663045262,-500.0,0.00020136,3]
[350162722,1737663045271,-543.06,0.00020136,3]
[350162724,1737663045281,-500.0,0.00020136,3]
[350162726,1737663045290,-500.0,0.00020136,3]
[350162728,1737663045299,-500.0,0.00020136,3]
[350162730,1737663045308,-6658.01,0.00020136,3]
[350162732,1737663045319,-847.08,0.00020136,3]
[350162734,1737663045328,-500.0,0.00020136,3]
[350162736,1737663045337,-151.0,0.00020136,2]
[350162738,1737663045346,-500.0,0.00020136,3]
[350162740,1737663045355,-1306.42,0.00020136,3]
[350162742,1737663045365,-500.0,0.00020136,3]
[350162744,1737663045374,-500.0,0.00020136,3]
[350162746,1737663045383,-767.93,0.00020136,3]
[350162748,1737663045393,-1447.81,0.00020136,3]
[350162750,1737663045402,-500.0,0.00020136,3]
[350162752,1737663045411,-3555.19,0.00020136,3]
[350162754,1737663045420,-1121.38,0.00020136,3]
[350162756,1737663045430,-216.01665,0.00020136,2]
[350162758,1737663045439,-216.016658,0.00020136,2]
[350162760,1737663045448,-167.79372962,0.00020137,3]
[350162762,1737663045459,-150.05,0.00020137,2]
[350162764,1737663045470,-150.05,0.00020137,3]
[350162766,1737663045478,-199.93,0.00020137,3]
[350162768,1737663045487,-1301.48638661,0.00020176,2]
[350162780,1737663045583,-151.0,0.00020176,2]
[350162782,1737663045592,-151.0,0.000202,4]
[350162784,1737663045602,-500.62893881,0.00020215,2]
[350162786,1737663045611,-308.94856532,0.00020215,2]
[350162788,1737663045620,-500.0,0.00020215,2]
[350162790,1737663045629,-284.22954522,0.00020215,2]
[350162792,1737663045638,-500.0,0.00020215,2]
[350162794,1737663045647,-400.93692984,0.00020215,2]
[350162796,1737663045656,-500.0,0.00020215,2]
[350162798,1737663045665,-195.053583,0.00020273,2]
[350162800,1737663045674,-195.053577,0.00020273,2]
[350162802,1737663045683,-500.0,0.00020273,3]
[350162804,1737663045692,-500.0,0.00020273,3]
[350162806,1737663045702,-339.63,0.00020273,3]
[350162808,1737663045712,-500.0,0.00020273,3]
[350162809,1737663045722,-525.141068,0.00020273,2]
[350162811,1737663045732,-500.0,0.00020273,3]
[350162813,1737663045742,-817.01,0.00020273,3]
[350162816,1737663045752,-151.0,0.00020273,2]
[350162818,1737663045761,-500.0,0.00020273,3]
[350162820,1737663045772,-500.0,0.00020273,3]
[350162822,1737663045781,-878.33,0.00020273,3]
[350162823,1737663045791,-500.0,0.00020273,3]
[350162825,1737663045800,-8046.19,0.00020273,3]
[350162828,1737663045810,-3105.27,0.00020273,3]
[350162829,1737663045819,-3913.85,0.00020273,3]
[350162832,1737663045829,-500.0,0.00020273,3]
[350162835,1737663045839,-500.0,0.00020273,3]
[350162837,1737663045848,-1711.96,0.00020273,3]
[350162839,1737663045857,-1208.85,0.00020273,3]
[350162841,1737663045867,-688.62,0.00020273,3]
[350162843,1737663045878,-873.61,0.00020273,3]
[350162846,1737663045887,-1318.32,0.00020273,3]
[350162849,1737663045897,-534.45,0.00020273,3]
[350162852,1737663045907,-500.0,0.00020273,3]
[350162853,1737663045916,-543.06,0.00020273,3]
[350162854,1737663045925,-500.0,0.00020273,3]
[350162855,1737663045934,-500.0,0.00020273,3]
[350162856,1737663045944,-500.0,0.00020273,3]
[350162857,1737663045953,-6658.01,0.00020273,3]
[350162858,1737663045962,-847.08,0.00020273,3]
[350162859,1737663045971,-500.0,0.00020273,3]
[350162860,1737663045980,-500.0,0.00020273,3]
[350162861,1737663045989,-1306.42,0.00020273,3]
[350162862,1737663045998,-500.0,0.00020273,3]
[350162863,1737663046007,-500.0,0.00020273,3]
[350162864,1737663046017,-767.93,0.00020273,3]
[350162865,1737663046026,-1447.81,0.00020273,3]
[350162866,1737663046036,-500.0,0.00020273,3]
[350162867,1737663046045,-3555.19,0.00020273,3]
[350162868,1737663046055,-1121.38,0.00020273,3]
[350162869,1737663046064,-500.0,0.00020284,2]
[350162870,1737663046073,-151.0,0.000203,4]
[350162871,1737663046082,-500.0,0.00020304,2]
[350162873,1737663046092,-500.0,0.00020304,2]
[350162875,1737663046101,-272.20144113,0.00020304,2]
[350162876,1737663046110,-322.45071314,0.00020304,2]
[350162877,1737663046119,-500.0,0.00020304,2]
[350162878,1737663046129,-500.0,0.00020304,2]
[350162879,1737663046138,-468.26752223,0.00020304,2]
[350162880,1737663046148,-1301.48638661,0.00020314,2]
[350162881,1737663046158,-334.30349223,0.00020321,2]
[350162882,1737663046168,-151.0,0.000204,4]
[350162883,1737663046177,-500.0,0.0002041,3]
[350162884,1737663046186,-320.48,0.0002041,3]
[350162885,1737663046196,-500.0,0.0002041,3]
[350162886,1737663046205,-500.0,0.0002041,3]
[350162888,1737663046215,-817.01,0.0002041,3]
[350162890,1737663046224,-500.0,0.0002041,3]
[350162892,1737663046234,-529.56,0.0002041,3]
[350162894,1737663046243,-878.33,0.0002041,3]
[350162896,1737663046252,-500.0,0.0002041,3]
[350162897,1737663046262,-8046.19,0.0002041,3]
[350162898,1737663046271,-3105.27,0.0002041,3]
[350162899,1737663046280,-3913.85,0.0002041,3]
[350162900,1737663046290,-500.0,0.0002041,3]
[350162901,1737663046299,-500.0,0.0002041,3]
[350162902,1737663046309,-1711.96,0.0002041,3]
[350162903,1737663046319,-1208.85,0.0002041,3]
[350162904,1737663046329,-688.62,0.0002041,3]
[350162905,1737663046338,-873.61,0.0002041,3]
[350162906,1737663046348,-1318.32,0.0002041,3]
[350162907,1737663046358,-534.45,0.0002041,3]
[350162908,1737663046367,-500.0,0.0002041,3]
[350162909,1737663046377,-543.06,0.0002041,3]
[350162910,1737663046386,-500.0,0.0002041,3]
[350162911,1737663046395,-500.0,0.0002041,3]
[350162912,1737663046405,-500.0,0.0002041,3]
[350162913,1737663046414,-6658.01,0.0002041,3]
[350162914,1737663046423,-847.08,0.0002041,3]
[350162915,1737663046433,-500.0,0.0002041,3]
[350162917,1737663046442,-500.0,0.0002041,3]
[350162918,1737663046456,-1306.42,0.0002041,3]
[350162919,1737663046466,-500.0,0.0002041,3]
[350162921,1737663046476,-500.0,0.0002041,3]
[350162923,1737663046485,-767.93,0.0002041,3]
[350162925,1737663046495,-1447.81,0.0002041,3]
[350162927,1737663046504,-500.0,0.0002041,3]
[350162928,1737663046514,-3555.19,0.0002041,3]
[350162931,1737663046524,-1121.38,0.0002041,3]
[350162932,1737663046535,-199.96,0.00020411,2]
[350162933,1737663046545,-299.83,0.00020411,3]
[350162934,1737663046554,-361.533352,0.00020447,2]
[350162935,1737663046563,-1301.48638661,0.00020452,2]
[350162936,1737663046573,-151.0,0.000205,3]
[350162937,1737663046583,-151.0,0.000205,4]
[350162938,1737663046592,-151.0,0.000205,4]
[350162939,1737663046602,-550.56549744,0.00020547,3]
[350162940,1737663046611,-500.0,0.00020547,3]
[350162941,1737663046620,-225.05811873,0.00020547,2]
[350162942,1737663046631,-500.0,0.00020547,3]
[350162943,1737663046640,-817.01,0.00020547,3]
[350162944,1737663046650,-500.0,0.00020547,3]
[350162945,1737663046659,-878.33,0.00020547,3]
[350162946,1737663046669,-500.0,0.00020547,3]
[350162948,1737663046678,-8046.19,0.00020547,3]
[350162950,1737663046688,-3105.27,0.00020547,3]
[350162951,1737663046697,-3913.85,0.00020547,3]
[350162953,1737663046706,-500.0,0.00020547,3]
[350162955,1737663046716,-500.0,0.00020547,3]
[350162957,1737663046726,-1711.96,0.00020547,3]
[350162959,1737663046735,-1208.85,0.00020547,3]
[350162962,1737663046745,-688.62,0.00020547,3]
[350162965,1737663046754,-873.61,0.00020547,3]
[350162966,1737663046765,-1318.32,0.00020547,3]
[350162968,1737663046777,-534.45,0.00020547,3]
[350162970,1737663046786,-500.0,0.00020547,3]
[350162971,1737663046796,-543.06,0.00020547,3]
[350162973,1737663046806,-471.89,0.00020547,3]
[350162974,1737663046816,-500.0,0.00020547,3]
[350162976,1737663046826,-500.0,0.00020547,3]
[350162977,1737663046835,-6658.01,0.00020547,3]
[350162978,1737663046844,-847.08,0.00020547,3]